{"text_format":"3","workbook":"xlsx","n_sheets":5,"sheets":["Oversigt over året til dato","1. kvartal","2. kvartal","3. kvartal","4. kvartal"],"not_rendered":{"defined_names":12},"read":"whole","date_system":"1900"}

{"sheet":"Oversigt over året til dato","index":0,"n_rows":36,"n_cols":12,"rows_kept":36,"merged":[[3,0,3,6]]}
["Firmanavn"]
["Fremmøderegistrering – Oversigt over året til dato"]
["Dato"]
[{"$f":"Firmanavn","v":"Firmanavn"},{"$nulls":6},"FORTROLIGT"]
["Efternavn","Fornavn","Ferie","Orlov","Syg","CPR-NR.","Stilling","Tilsynsførende","Ansættelsesdato","Kommentarer","Feriedage \npr. år","Feriedage \nTilbageværende"]
["Efternavn","Fornavn",{"$f":"SUM('1. kvartal:4. kvartal'!C6)","v":3},{"$f":"SUM('1. kvartal:4. kvartal'!D6)","v":0},{"$f":"SUM('1. kvartal:4. kvartal'!E6)","v":1},"xxxxxx-xxxx","Leder","Navn",null,null,10,{"$f":"K6-C6","v":7}]
[null,null,{"$f":"SUM('1. kvartal:4. kvartal'!C7)","v":0},{"$f":"SUM('1. kvartal:4. kvartal'!D7)","v":0},{"$f":"SUM('1. kvartal:4. kvartal'!E7)","v":0},{"$nulls":6},{"$f":"K7-C7","v":0}]
[null,null,{"$f":"SUM('1. kvartal:4. kvartal'!C8)","v":0},{"$f":"SUM('1. kvartal:4. kvartal'!D8)","v":0},{"$f":"SUM('1. kvartal:4. kvartal'!E8)","v":0},{"$nulls":6},0]
[null,null,{"$f":"SUM('1. kvartal:4. kvartal'!C9)","v":0},{"$f":"SUM('1. kvartal:4. kvartal'!D9)","v":0},{"$f":"SUM('1. kvartal:4. kvartal'!E9)","v":0},{"$nulls":6},0]
[null,null,{"$f":"SUM('1. kvartal:4. kvartal'!C10)","v":0},{"$f":"SUM('1. kvartal:4. kvartal'!D10)","v":0},{"$f":"SUM('1. kvartal:4. kvartal'!E10)","v":0},{"$nulls":6},0]
[null,null,{"$f":"SUM('1. kvartal:4. kvartal'!C11)","v":0},{"$f":"SUM('1. kvartal:4. kvartal'!D11)","v":0},{"$f":"SUM('1. kvartal:4. kvartal'!E11)","v":0},{"$nulls":6},0]
[null,null,{"$f":"SUM('1. kvartal:4. kvartal'!C12)","v":0},{"$f":"SUM('1. kvartal:4. kvartal'!D12)","v":0},{"$f":"SUM('1. kvartal:4. kvartal'!E12)","v":0},{"$nulls":6},0]
[null,null,{"$f":"SUM('1. kvartal:4. kvartal'!C13)","v":0},{"$f":"SUM('1. kvartal:4. kvartal'!D13)","v":0},{"$f":"SUM('1. kvartal:4. kvartal'!E13)","v":0},{"$nulls":6},0]
[null,null,{"$f":"SUM('1. kvartal:4. kvartal'!C14)","v":0},{"$f":"SUM('1. kvartal:4. kvartal'!D14)","v":0},{"$f":"SUM('1. kvartal:4. kvartal'!E14)","v":0},{"$nulls":6},0]
[null,null,{"$f":"SUM('1. kvartal:4. kvartal'!C15)","v":0},{"$f":"SUM('1. kvartal:4. kvartal'!D15)","v":0},{"$f":"SUM('1. kvartal:4. kvartal'!E15)","v":0},{"$nulls":6},0]
[null,null,{"$f":"SUM('1. kvartal:4. kvartal'!C16)","v":0},{"$f":"SUM('1. kvartal:4. kvartal'!D16)","v":0},{"$f":"SUM('1. kvartal:4. kvartal'!E16)","v":0},{"$nulls":6},0]
[null,null,{"$f":"SUM('1. kvartal:4. kvartal'!C17)","v":0},{"$f":"SUM('1. kvartal:4. kvartal'!D17)","v":0},{"$f":"SUM('1. kvartal:4. kvartal'!E17)","v":0},{"$nulls":6},0]
[null,null,{"$f":"SUM('1. kvartal:4. kvartal'!C18)","v":0},{"$f":"SUM('1. kvartal:4. kvartal'!D18)","v":0},{"$f":"SUM('1. kvartal:4. kvartal'!E18)","v":0},{"$nulls":6},0]
[null,null,{"$f":"SUM('1. kvartal:4. kvartal'!C19)","v":0},{"$f":"SUM('1. kvartal:4. kvartal'!D19)","v":0},{"$f":"SUM('1. kvartal:4. kvartal'!E19)","v":0},{"$nulls":6},0]
[null,null,{"$f":"SUM('1. kvartal:4. kvartal'!C20)","v":0},{"$f":"SUM('1. kvartal:4. kvartal'!D20)","v":0},{"$f":"SUM('1. kvartal:4. kvartal'!E20)","v":0},{"$nulls":6},0]
[null,null,{"$f":"SUM('1. kvartal:4. kvartal'!C21)","v":0},{"$f":"SUM('1. kvartal:4. kvartal'!D21)","v":0},{"$f":"SUM('1. kvartal:4. kvartal'!E21)","v":0},{"$nulls":6},0]
[null,null,{"$f":"SUM('1. kvartal:4. kvartal'!C22)","v":0},{"$f":"SUM('1. kvartal:4. kvartal'!D22)","v":0},{"$f":"SUM('1. kvartal:4. kvartal'!E22)","v":0},{"$nulls":6},0]
[null,null,{"$f":"SUM('1. kvartal:4. kvartal'!C23)","v":0},{"$f":"SUM('1. kvartal:4. kvartal'!D23)","v":0},{"$f":"SUM('1. kvartal:4. kvartal'!E23)","v":0},{"$nulls":6},0]
[null,null,{"$f":"SUM('1. kvartal:4. kvartal'!C24)","v":0},{"$f":"SUM('1. kvartal:4. kvartal'!D24)","v":0},{"$f":"SUM('1. kvartal:4. kvartal'!E24)","v":0},{"$nulls":6},0]
[null,null,{"$f":"SUM('1. kvartal:4. kvartal'!C25)","v":0},{"$f":"SUM('1. kvartal:4. kvartal'!D25)","v":0},{"$f":"SUM('1. kvartal:4. kvartal'!E25)","v":0},{"$nulls":6},0]
[null,null,{"$f":"SUM('1. kvartal:4. kvartal'!C26)","v":0},{"$f":"SUM('1. kvartal:4. kvartal'!D26)","v":0},{"$f":"SUM('1. kvartal:4. kvartal'!E26)","v":0},{"$nulls":6},0]
[null,null,{"$f":"SUM('1. kvartal:4. kvartal'!C27)","v":0},{"$f":"SUM('1. kvartal:4. kvartal'!D27)","v":0},{"$f":"SUM('1. kvartal:4. kvartal'!E27)","v":0},{"$nulls":6},0]
[null,null,{"$f":"SUM('1. kvartal:4. kvartal'!C28)","v":0},{"$f":"SUM('1. kvartal:4. kvartal'!D28)","v":0},{"$f":"SUM('1. kvartal:4. kvartal'!E28)","v":0},{"$nulls":6},0]
[null,null,{"$f":"SUM('1. kvartal:4. kvartal'!C29)","v":0},{"$f":"SUM('1. kvartal:4. kvartal'!D29)","v":0},{"$f":"SUM('1. kvartal:4. kvartal'!E29)","v":0},{"$nulls":6},0]
[null,null,{"$f":"SUM('1. kvartal:4. kvartal'!C30)","v":0},{"$f":"SUM('1. kvartal:4. kvartal'!D30)","v":0},{"$f":"SUM('1. kvartal:4. kvartal'!E30)","v":0},{"$nulls":6},0]
[null,null,{"$f":"SUM('1. kvartal:4. kvartal'!C31)","v":0},{"$f":"SUM('1. kvartal:4. kvartal'!D31)","v":0},{"$f":"SUM('1. kvartal:4. kvartal'!E31)","v":0},{"$nulls":6},0]
[null,null,{"$f":"SUM('1. kvartal:4. kvartal'!C32)","v":0},{"$f":"SUM('1. kvartal:4. kvartal'!D32)","v":0},{"$f":"SUM('1. kvartal:4. kvartal'!E32)","v":0},{"$nulls":6},0]
[null,null,{"$f":"SUM('1. kvartal:4. kvartal'!C33)","v":0},{"$f":"SUM('1. kvartal:4. kvartal'!D33)","v":0},{"$f":"SUM('1. kvartal:4. kvartal'!E33)","v":0},{"$nulls":6},0]
[null,null,{"$f":"SUM('1. kvartal:4. kvartal'!C34)","v":0},{"$f":"SUM('1. kvartal:4. kvartal'!D34)","v":0},{"$f":"SUM('1. kvartal:4. kvartal'!E34)","v":0},{"$nulls":6},0]
[null,null,{"$f":"SUM('1. kvartal:4. kvartal'!C35)","v":0},{"$f":"SUM('1. kvartal:4. kvartal'!D35)","v":0},{"$f":"SUM('1. kvartal:4. kvartal'!E35)","v":0},{"$nulls":6},0]
[null,null,{"$f":"SUM('1. kvartal:4. kvartal'!C36)","v":0},{"$f":"SUM('1. kvartal:4. kvartal'!D36)","v":0},{"$f":"SUM('1. kvartal:4. kvartal'!E36)","v":0},{"$nulls":6},0]

{"sheet":"1. kvartal","index":1,"n_rows":36,"n_cols":95,"rows_kept":36,"merged":[[3,0,3,6]]}
[{"$f":"Firmanavn","v":"Firmanavn"}]
["Fremmøderegistrering, 1. kvartal"]
["Dato"]
[{"$f":"Firmanavn","v":"Firmanavn"},{"$nulls":6},"FORTROLIGT"]
["Efternavn","Fornavn","Ferie","Orlov","Syg","01-01","02-01","03-01","04-01","05-01","06-01","07-01","08-01","09-01","10-01","11-01","12-01","13-01","14-01","15-01","16-01","17-01","18-01","19-01","20-01","21-01","22-01","23-01","24-01","25-01","26-01","27-01","28-01","29-01","30-01","31-01","01-02","02-02","03-02","04-02","05-02","06-02","07-02","08-02","09-02","10-02","11-02","12-02","13-02","14-02","15-02","16-02","17-02","18-02","19-02","20-02","21-02","22-02","23-02","24-02","25-02","26-02","27-02","28-02","01-03","02-03","03-03","04-03","05-03","06-03","07-03","08-03","09-03","10-03","11-03","12-03","13-03","14-03","15-03","16-03","17-03","18-03","19-03","20-03","21-03","22-03","23-03","24-03","25-03","26-03","27-03","28-03","29-03","30-03","31-03"]
[{"$f":"IF(ISBLANK('Oversigt over året til dato'!A6),\"\",'Oversigt over året til dato'!A6)","v":"Efternavn"},{"$f":"IF(ISBLANK('Oversigt over året til dato'!B6),\"\",'Oversigt over året til dato'!B6)","v":"Fornavn"},{"$f":"COUNTIF($F6:$CQ6, \"F\")","v":3},{"$f":"COUNTIF($F6:$CQ6, \"O\")","v":0},{"$f":"COUNTIF($F6:$CQ6, \"S\")","v":1},"f","f","f",{"$nulls":4},"s"]
[{"$f":"IF(ISBLANK('Oversigt over året til dato'!A7),\"\",'Oversigt over året til dato'!A7)","v":""},{"$f":"IF(ISBLANK('Oversigt over året til dato'!B7),\"\",'Oversigt over året til dato'!B7)","v":""},{"$f":"COUNTIF($F7:$CQ7, \"F\")","v":0},{"$f":"COUNTIF($F7:$CQ7, \"O\")","v":0},{"$f":"COUNTIF($F7:$CQ7, \"S\")","v":0}]
[{"$f":"IF(ISBLANK('Oversigt over året til dato'!A8),\"\",'Oversigt over året til dato'!A8)","v":""},{"$f":"IF(ISBLANK('Oversigt over året til dato'!B8),\"\",'Oversigt over året til dato'!B8)","v":""},0,0,0]
[{"$f":"IF(ISBLANK('Oversigt over året til dato'!A9),\"\",'Oversigt over året til dato'!A9)","v":""},{"$f":"IF(ISBLANK('Oversigt over året til dato'!B9),\"\",'Oversigt over året til dato'!B9)","v":""},0,0,0]
[{"$f":"IF(ISBLANK('Oversigt over året til dato'!A10),\"\",'Oversigt over året til dato'!A10)","v":""},{"$f":"IF(ISBLANK('Oversigt over året til dato'!B10),\"\",'Oversigt over året til dato'!B10)","v":""},0,0,0]
[{"$f":"IF(ISBLANK('Oversigt over året til dato'!A11),\"\",'Oversigt over året til dato'!A11)","v":""},{"$f":"IF(ISBLANK('Oversigt over året til dato'!B11),\"\",'Oversigt over året til dato'!B11)","v":""},0,0,0]
[{"$f":"IF(ISBLANK('Oversigt over året til dato'!A12),\"\",'Oversigt over året til dato'!A12)","v":""},{"$f":"IF(ISBLANK('Oversigt over året til dato'!B12),\"\",'Oversigt over året til dato'!B12)","v":""},0,0,0]
[{"$f":"IF(ISBLANK('Oversigt over året til dato'!A13),\"\",'Oversigt over året til dato'!A13)","v":""},{"$f":"IF(ISBLANK('Oversigt over året til dato'!B13),\"\",'Oversigt over året til dato'!B13)","v":""},0,0,0]
[{"$f":"IF(ISBLANK('Oversigt over året til dato'!A14),\"\",'Oversigt over året til dato'!A14)","v":""},{"$f":"IF(ISBLANK('Oversigt over året til dato'!B14),\"\",'Oversigt over året til dato'!B14)","v":""},0,0,0]
[{"$f":"IF(ISBLANK('Oversigt over året til dato'!A15),\"\",'Oversigt over året til dato'!A15)","v":""},{"$f":"IF(ISBLANK('Oversigt over året til dato'!B15),\"\",'Oversigt over året til dato'!B15)","v":""},0,0,0]
[{"$f":"IF(ISBLANK('Oversigt over året til dato'!A16),\"\",'Oversigt over året til dato'!A16)","v":""},{"$f":"IF(ISBLANK('Oversigt over året til dato'!B16),\"\",'Oversigt over året til dato'!B16)","v":""},0,0,0]
[{"$f":"IF(ISBLANK('Oversigt over året til dato'!A17),\"\",'Oversigt over året til dato'!A17)","v":""},{"$f":"IF(ISBLANK('Oversigt over året til dato'!B17),\"\",'Oversigt over året til dato'!B17)","v":""},0,0,0]
[{"$f":"IF(ISBLANK('Oversigt over året til dato'!A18),\"\",'Oversigt over året til dato'!A18)","v":""},{"$f":"IF(ISBLANK('Oversigt over året til dato'!B18),\"\",'Oversigt over året til dato'!B18)","v":""},0,0,0]
[{"$f":"IF(ISBLANK('Oversigt over året til dato'!A19),\"\",'Oversigt over året til dato'!A19)","v":""},{"$f":"IF(ISBLANK('Oversigt over året til dato'!B19),\"\",'Oversigt over året til dato'!B19)","v":""},0,0,0]
[{"$f":"IF(ISBLANK('Oversigt over året til dato'!A20),\"\",'Oversigt over året til dato'!A20)","v":""},{"$f":"IF(ISBLANK('Oversigt over året til dato'!B20),\"\",'Oversigt over året til dato'!B20)","v":""},0,0,0]
[{"$f":"IF(ISBLANK('Oversigt over året til dato'!A21),\"\",'Oversigt over året til dato'!A21)","v":""},{"$f":"IF(ISBLANK('Oversigt over året til dato'!B21),\"\",'Oversigt over året til dato'!B21)","v":""},0,0,0]
[{"$f":"IF(ISBLANK('Oversigt over året til dato'!A22),\"\",'Oversigt over året til dato'!A22)","v":""},{"$f":"IF(ISBLANK('Oversigt over året til dato'!B22),\"\",'Oversigt over året til dato'!B22)","v":""},0,0,0]
[{"$f":"IF(ISBLANK('Oversigt over året til dato'!A23),\"\",'Oversigt over året til dato'!A23)","v":""},{"$f":"IF(ISBLANK('Oversigt over året til dato'!B23),\"\",'Oversigt over året til dato'!B23)","v":""},0,0,0]
[{"$f":"IF(ISBLANK('Oversigt over året til dato'!A24),\"\",'Oversigt over året til dato'!A24)","v":""},{"$f":"IF(ISBLANK('Oversigt over året til dato'!B24),\"\",'Oversigt over året til dato'!B24)","v":""},0,0,0]
[{"$f":"IF(ISBLANK('Oversigt over året til dato'!A25),\"\",'Oversigt over året til dato'!A25)","v":""},{"$f":"IF(ISBLANK('Oversigt over året til dato'!B25),\"\",'Oversigt over året til dato'!B25)","v":""},0,0,0]
[{"$f":"IF(ISBLANK('Oversigt over året til dato'!A26),\"\",'Oversigt over året til dato'!A26)","v":""},{"$f":"IF(ISBLANK('Oversigt over året til dato'!B26),\"\",'Oversigt over året til dato'!B26)","v":""},0,0,0]
[{"$f":"IF(ISBLANK('Oversigt over året til dato'!A27),\"\",'Oversigt over året til dato'!A27)","v":""},{"$f":"IF(ISBLANK('Oversigt over året til dato'!B27),\"\",'Oversigt over året til dato'!B27)","v":""},0,0,0]
[{"$f":"IF(ISBLANK('Oversigt over året til dato'!A28),\"\",'Oversigt over året til dato'!A28)","v":""},{"$f":"IF(ISBLANK('Oversigt over året til dato'!B28),\"\",'Oversigt over året til dato'!B28)","v":""},0,0,0]
[{"$f":"IF(ISBLANK('Oversigt over året til dato'!A29),\"\",'Oversigt over året til dato'!A29)","v":""},{"$f":"IF(ISBLANK('Oversigt over året til dato'!B29),\"\",'Oversigt over året til dato'!B29)","v":""},0,0,0]
[{"$f":"IF(ISBLANK('Oversigt over året til dato'!A30),\"\",'Oversigt over året til dato'!A30)","v":""},{"$f":"IF(ISBLANK('Oversigt over året til dato'!B30),\"\",'Oversigt over året til dato'!B30)","v":""},0,0,0]
[{"$f":"IF(ISBLANK('Oversigt over året til dato'!A31),\"\",'Oversigt over året til dato'!A31)","v":""},{"$f":"IF(ISBLANK('Oversigt over året til dato'!B31),\"\",'Oversigt over året til dato'!B31)","v":""},0,0,0]
[{"$f":"IF(ISBLANK('Oversigt over året til dato'!A32),\"\",'Oversigt over året til dato'!A32)","v":""},{"$f":"IF(ISBLANK('Oversigt over året til dato'!B32),\"\",'Oversigt over året til dato'!B32)","v":""},0,0,0]
[{"$f":"IF(ISBLANK('Oversigt over året til dato'!A33),\"\",'Oversigt over året til dato'!A33)","v":""},{"$f":"IF(ISBLANK('Oversigt over året til dato'!B33),\"\",'Oversigt over året til dato'!B33)","v":""},0,0,0]
[{"$f":"IF(ISBLANK('Oversigt over året til dato'!A34),\"\",'Oversigt over året til dato'!A34)","v":""},{"$f":"IF(ISBLANK('Oversigt over året til dato'!B34),\"\",'Oversigt over året til dato'!B34)","v":""},0,0,0]
[{"$f":"IF(ISBLANK('Oversigt over året til dato'!A35),\"\",'Oversigt over året til dato'!A35)","v":""},{"$f":"IF(ISBLANK('Oversigt over året til dato'!B35),\"\",'Oversigt over året til dato'!B35)","v":""},0,0,0]
[{"$f":"IF(ISBLANK('Oversigt over året til dato'!A36),\"\",'Oversigt over året til dato'!A36)","v":""},{"$f":"IF(ISBLANK('Oversigt over året til dato'!B36),\"\",'Oversigt over året til dato'!B36)","v":""},0,0,0]

{"sheet":"2. kvartal","index":2,"n_rows":36,"n_cols":96,"rows_kept":36,"merged":[[3,0,3,6]]}
[{"$f":"Firmanavn","v":"Firmanavn"}]
["Fremmøderegistrering, 2. kvartal"]
["Dato"]
[{"$f":"Firmanavn","v":"Firmanavn"},{"$nulls":6},"FORTROLIGT"]
["Efternavn","Fornavn","Ferie","Orlov","Syg","01-04","02-04","03-04","04-04","05-04","06-04","07-04","08-04","09-04","10-04","11-04","12-04","13-04","14-04","15-04","16-04","17-04","18-04","19-04","20-04","21-04","22-04","23-04","24-04","25-04","26-04","27-04","28-04","29-04","30-04","01-05","02-05","03-05","04-05","05-05","06-05","07-05","08-05","09-05","10-05","11-05","12-05","13-05","14-05","15-05","16-05","17-05","18-05","19-05","20-05","21-05","22-05","23-05","24-05","25-05","26-05","27-05","28-05","29-05","30-05","31-05","01-06","02-06","03-06","04-06","05-06","06-06","07-06","08-06","09-06","10-06","11-06","12-06","13-06","14-06","15-06","16-06","17-06","18-06","19-06","20-06","21-06","22-06","23-06","24-06","25-06","26-06","27-06","28-06","29-06","30-06"]
[{"$f":"IF(ISBLANK('Oversigt over året til dato'!A6),\"\",'Oversigt over året til dato'!A6)","v":"Efternavn"},{"$f":"IF(ISBLANK('Oversigt over året til dato'!B6),\"\",'Oversigt over året til dato'!B6)","v":"Fornavn"},{"$f":"COUNTIF($F6:$CR6, \"F\")","v":0},{"$f":"COUNTIF($F6:$CR6, \"O\")","v":0},{"$f":"COUNTIF($F6:$CR6, \"S\")","v":0}]
[{"$f":"IF(ISBLANK('Oversigt over året til dato'!A7),\"\",'Oversigt over året til dato'!A7)","v":""},{"$f":"IF(ISBLANK('Oversigt over året til dato'!B7),\"\",'Oversigt over året til dato'!B7)","v":""},{"$f":"COUNTIF($F7:$CR7, \"F\")","v":0},{"$f":"COUNTIF($F7:$CR7, \"O\")","v":0},{"$f":"COUNTIF($F7:$CR7, \"S\")","v":0}]
[{"$f":"IF(ISBLANK('Oversigt over året til dato'!A8),\"\",'Oversigt over året til dato'!A8)","v":""},{"$f":"IF(ISBLANK('Oversigt over året til dato'!B8),\"\",'Oversigt over året til dato'!B8)","v":""},0,0,0]
[{"$f":"IF(ISBLANK('Oversigt over året til dato'!A9),\"\",'Oversigt over året til dato'!A9)","v":""},{"$f":"IF(ISBLANK('Oversigt over året til dato'!B9),\"\",'Oversigt over året til dato'!B9)","v":""},0,0,0]
[{"$f":"IF(ISBLANK('Oversigt over året til dato'!A10),\"\",'Oversigt over året til dato'!A10)","v":""},{"$f":"IF(ISBLANK('Oversigt over året til dato'!B10),\"\",'Oversigt over året til dato'!B10)","v":""},0,0,0]
[{"$f":"IF(ISBLANK('Oversigt over året til dato'!A11),\"\",'Oversigt over året til dato'!A11)","v":""},{"$f":"IF(ISBLANK('Oversigt over året til dato'!B11),\"\",'Oversigt over året til dato'!B11)","v":""},0,0,0]
[{"$f":"IF(ISBLANK('Oversigt over året til dato'!A12),\"\",'Oversigt over året til dato'!A12)","v":""},{"$f":"IF(ISBLANK('Oversigt over året til dato'!B12),\"\",'Oversigt over året til dato'!B12)","v":""},0,0,0]
[{"$f":"IF(ISBLANK('Oversigt over året til dato'!A13),\"\",'Oversigt over året til dato'!A13)","v":""},{"$f":"IF(ISBLANK('Oversigt over året til dato'!B13),\"\",'Oversigt over året til dato'!B13)","v":""},0,0,0]
[{"$f":"IF(ISBLANK('Oversigt over året til dato'!A14),\"\",'Oversigt over året til dato'!A14)","v":""},{"$f":"IF(ISBLANK('Oversigt over året til dato'!B14),\"\",'Oversigt over året til dato'!B14)","v":""},0,0,0]
[{"$f":"IF(ISBLANK('Oversigt over året til dato'!A15),\"\",'Oversigt over året til dato'!A15)","v":""},{"$f":"IF(ISBLANK('Oversigt over året til dato'!B15),\"\",'Oversigt over året til dato'!B15)","v":""},0,0,0]
[{"$f":"IF(ISBLANK('Oversigt over året til dato'!A16),\"\",'Oversigt over året til dato'!A16)","v":""},{"$f":"IF(ISBLANK('Oversigt over året til dato'!B16),\"\",'Oversigt over året til dato'!B16)","v":""},0,0,0]
[{"$f":"IF(ISBLANK('Oversigt over året til dato'!A17),\"\",'Oversigt over året til dato'!A17)","v":""},{"$f":"IF(ISBLANK('Oversigt over året til dato'!B17),\"\",'Oversigt over året til dato'!B17)","v":""},0,0,0]
[{"$f":"IF(ISBLANK('Oversigt over året til dato'!A18),\"\",'Oversigt over året til dato'!A18)","v":""},{"$f":"IF(ISBLANK('Oversigt over året til dato'!B18),\"\",'Oversigt over året til dato'!B18)","v":""},0,0,0]
[{"$f":"IF(ISBLANK('Oversigt over året til dato'!A19),\"\",'Oversigt over året til dato'!A19)","v":""},{"$f":"IF(ISBLANK('Oversigt over året til dato'!B19),\"\",'Oversigt over året til dato'!B19)","v":""},0,0,0]
[{"$f":"IF(ISBLANK('Oversigt over året til dato'!A20),\"\",'Oversigt over året til dato'!A20)","v":""},{"$f":"IF(ISBLANK('Oversigt over året til dato'!B20),\"\",'Oversigt over året til dato'!B20)","v":""},0,0,0]
[{"$f":"IF(ISBLANK('Oversigt over året til dato'!A21),\"\",'Oversigt over året til dato'!A21)","v":""},{"$f":"IF(ISBLANK('Oversigt over året til dato'!B21),\"\",'Oversigt over året til dato'!B21)","v":""},0,0,0]
[{"$f":"IF(ISBLANK('Oversigt over året til dato'!A22),\"\",'Oversigt over året til dato'!A22)","v":""},{"$f":"IF(ISBLANK('Oversigt over året til dato'!B22),\"\",'Oversigt over året til dato'!B22)","v":""},0,0,0]
[{"$f":"IF(ISBLANK('Oversigt over året til dato'!A23),\"\",'Oversigt over året til dato'!A23)","v":""},{"$f":"IF(ISBLANK('Oversigt over året til dato'!B23),\"\",'Oversigt over året til dato'!B23)","v":""},0,0,0]
[{"$f":"IF(ISBLANK('Oversigt over året til dato'!A24),\"\",'Oversigt over året til dato'!A24)","v":""},{"$f":"IF(ISBLANK('Oversigt over året til dato'!B24),\"\",'Oversigt over året til dato'!B24)","v":""},0,0,0]
[{"$f":"IF(ISBLANK('Oversigt over året til dato'!A25),\"\",'Oversigt over året til dato'!A25)","v":""},{"$f":"IF(ISBLANK('Oversigt over året til dato'!B25),\"\",'Oversigt over året til dato'!B25)","v":""},0,0,0]
[{"$f":"IF(ISBLANK('Oversigt over året til dato'!A26),\"\",'Oversigt over året til dato'!A26)","v":""},{"$f":"IF(ISBLANK('Oversigt over året til dato'!B26),\"\",'Oversigt over året til dato'!B26)","v":""},0,0,0]
[{"$f":"IF(ISBLANK('Oversigt over året til dato'!A27),\"\",'Oversigt over året til dato'!A27)","v":""},{"$f":"IF(ISBLANK('Oversigt over året til dato'!B27),\"\",'Oversigt over året til dato'!B27)","v":""},0,0,0]
[{"$f":"IF(ISBLANK('Oversigt over året til dato'!A28),\"\",'Oversigt over året til dato'!A28)","v":""},{"$f":"IF(ISBLANK('Oversigt over året til dato'!B28),\"\",'Oversigt over året til dato'!B28)","v":""},0,0,0]
[{"$f":"IF(ISBLANK('Oversigt over året til dato'!A29),\"\",'Oversigt over året til dato'!A29)","v":""},{"$f":"IF(ISBLANK('Oversigt over året til dato'!B29),\"\",'Oversigt over året til dato'!B29)","v":""},0,0,0]
[{"$f":"IF(ISBLANK('Oversigt over året til dato'!A30),\"\",'Oversigt over året til dato'!A30)","v":""},{"$f":"IF(ISBLANK('Oversigt over året til dato'!B30),\"\",'Oversigt over året til dato'!B30)","v":""},0,0,0]
[{"$f":"IF(ISBLANK('Oversigt over året til dato'!A31),\"\",'Oversigt over året til dato'!A31)","v":""},{"$f":"IF(ISBLANK('Oversigt over året til dato'!B31),\"\",'Oversigt over året til dato'!B31)","v":""},0,0,0]
[{"$f":"IF(ISBLANK('Oversigt over året til dato'!A32),\"\",'Oversigt over året til dato'!A32)","v":""},{"$f":"IF(ISBLANK('Oversigt over året til dato'!B32),\"\",'Oversigt over året til dato'!B32)","v":""},0,0,0]
[{"$f":"IF(ISBLANK('Oversigt over året til dato'!A33),\"\",'Oversigt over året til dato'!A33)","v":""},{"$f":"IF(ISBLANK('Oversigt over året til dato'!B33),\"\",'Oversigt over året til dato'!B33)","v":""},0,0,0]
[{"$f":"IF(ISBLANK('Oversigt over året til dato'!A34),\"\",'Oversigt over året til dato'!A34)","v":""},{"$f":"IF(ISBLANK('Oversigt over året til dato'!B34),\"\",'Oversigt over året til dato'!B34)","v":""},0,0,0]
[{"$f":"IF(ISBLANK('Oversigt over året til dato'!A35),\"\",'Oversigt over året til dato'!A35)","v":""},{"$f":"IF(ISBLANK('Oversigt over året til dato'!B35),\"\",'Oversigt over året til dato'!B35)","v":""},0,0,0]
[{"$f":"IF(ISBLANK('Oversigt over året til dato'!A36),\"\",'Oversigt over året til dato'!A36)","v":""},{"$f":"IF(ISBLANK('Oversigt over året til dato'!B36),\"\",'Oversigt over året til dato'!B36)","v":""},0,0,0]

{"sheet":"3. kvartal","index":3,"n_rows":36,"n_cols":97,"rows_kept":36,"merged":[[3,0,3,6]]}
[{"$f":"Firmanavn","v":"Firmanavn"}]
["Fremmøderegistrering, 3. kvartal"]
["Dato"]
[{"$f":"Firmanavn","v":"Firmanavn"},{"$nulls":6},"FORTROLIGT"]
["Efternavn","Fornavn","Ferie","Orlov","Syg","01-07","02-07","03-07","04-07","05-07","06-07","07-07","08-07","09-07","10-07","11-07","12-07","13-07","14-07","15-07","16-07","17-07","18-07","19-07","20-07","21-07","22-07","23-07","24-07","25-07","26-07","27-07","28-07","29-07","30-07","31-07","01-08","02-08","03-08","04-08","05-08","06-08","07-08","08-08","09-08","10-08","11-08","12-08","13-08","14-08","15-08","16-08","17-08","18-08","19-08","20-08","21-08","22-08","23-08","24-08","25-08","26-08","27-08","28-08","29-08","30-08","31-08","01-09","02-09","03-09","04-09","05-09","06-09","07-09","08-09","09-09","10-09","11-09","12-09","13-09","14-09","15-09","16-09","17-09","18-09","19-09","20-09","21-09","22-09","23-09","24-09","25-09","26-09","27-09","28-09","29-09","30-09"]
[{"$f":"IF(ISBLANK('Oversigt over året til dato'!A6),\"\",'Oversigt over året til dato'!A6)","v":"Efternavn"},{"$f":"IF(ISBLANK('Oversigt over året til dato'!B6),\"\",'Oversigt over året til dato'!B6)","v":"Fornavn"},{"$f":"COUNTIF($F6:$CS6, \"F\")","v":0},{"$f":"COUNTIF($F6:$CS6, \"O\")","v":0},{"$f":"COUNTIF($F6:$CS6, \"S\")","v":0}]
[{"$f":"IF(ISBLANK('Oversigt over året til dato'!A7),\"\",'Oversigt over året til dato'!A7)","v":""},{"$f":"IF(ISBLANK('Oversigt over året til dato'!B7),\"\",'Oversigt over året til dato'!B7)","v":""},{"$f":"COUNTIF($F7:$CS7, \"F\")","v":0},{"$f":"COUNTIF($F7:$CS7, \"O\")","v":0},{"$f":"COUNTIF($F7:$CS7, \"S\")","v":0}]
[{"$f":"IF(ISBLANK('Oversigt over året til dato'!A8),\"\",'Oversigt over året til dato'!A8)","v":""},{"$f":"IF(ISBLANK('Oversigt over året til dato'!B8),\"\",'Oversigt over året til dato'!B8)","v":""},0,0,0]
[{"$f":"IF(ISBLANK('Oversigt over året til dato'!A9),\"\",'Oversigt over året til dato'!A9)","v":""},{"$f":"IF(ISBLANK('Oversigt over året til dato'!B9),\"\",'Oversigt over året til dato'!B9)","v":""},0,0,0]
[{"$f":"IF(ISBLANK('Oversigt over året til dato'!A10),\"\",'Oversigt over året til dato'!A10)","v":""},{"$f":"IF(ISBLANK('Oversigt over året til dato'!B10),\"\",'Oversigt over året til dato'!B10)","v":""},0,0,0]
[{"$f":"IF(ISBLANK('Oversigt over året til dato'!A11),\"\",'Oversigt over året til dato'!A11)","v":""},{"$f":"IF(ISBLANK('Oversigt over året til dato'!B11),\"\",'Oversigt over året til dato'!B11)","v":""},0,0,0]
[{"$f":"IF(ISBLANK('Oversigt over året til dato'!A12),\"\",'Oversigt over året til dato'!A12)","v":""},{"$f":"IF(ISBLANK('Oversigt over året til dato'!B12),\"\",'Oversigt over året til dato'!B12)","v":""},0,0,0]
[{"$f":"IF(ISBLANK('Oversigt over året til dato'!A13),\"\",'Oversigt over året til dato'!A13)","v":""},{"$f":"IF(ISBLANK('Oversigt over året til dato'!B13),\"\",'Oversigt over året til dato'!B13)","v":""},0,0,0]
[{"$f":"IF(ISBLANK('Oversigt over året til dato'!A14),\"\",'Oversigt over året til dato'!A14)","v":""},{"$f":"IF(ISBLANK('Oversigt over året til dato'!B14),\"\",'Oversigt over året til dato'!B14)","v":""},0,0,0]
[{"$f":"IF(ISBLANK('Oversigt over året til dato'!A15),\"\",'Oversigt over året til dato'!A15)","v":""},{"$f":"IF(ISBLANK('Oversigt over året til dato'!B15),\"\",'Oversigt over året til dato'!B15)","v":""},0,0,0]
[{"$f":"IF(ISBLANK('Oversigt over året til dato'!A16),\"\",'Oversigt over året til dato'!A16)","v":""},{"$f":"IF(ISBLANK('Oversigt over året til dato'!B16),\"\",'Oversigt over året til dato'!B16)","v":""},0,0,0]
[{"$f":"IF(ISBLANK('Oversigt over året til dato'!A17),\"\",'Oversigt over året til dato'!A17)","v":""},{"$f":"IF(ISBLANK('Oversigt over året til dato'!B17),\"\",'Oversigt over året til dato'!B17)","v":""},0,0,0]
[{"$f":"IF(ISBLANK('Oversigt over året til dato'!A18),\"\",'Oversigt over året til dato'!A18)","v":""},{"$f":"IF(ISBLANK('Oversigt over året til dato'!B18),\"\",'Oversigt over året til dato'!B18)","v":""},0,0,0]
[{"$f":"IF(ISBLANK('Oversigt over året til dato'!A19),\"\",'Oversigt over året til dato'!A19)","v":""},{"$f":"IF(ISBLANK('Oversigt over året til dato'!B19),\"\",'Oversigt over året til dato'!B19)","v":""},0,0,0]
[{"$f":"IF(ISBLANK('Oversigt over året til dato'!A20),\"\",'Oversigt over året til dato'!A20)","v":""},{"$f":"IF(ISBLANK('Oversigt over året til dato'!B20),\"\",'Oversigt over året til dato'!B20)","v":""},0,0,0]
[{"$f":"IF(ISBLANK('Oversigt over året til dato'!A21),\"\",'Oversigt over året til dato'!A21)","v":""},{"$f":"IF(ISBLANK('Oversigt over året til dato'!B21),\"\",'Oversigt over året til dato'!B21)","v":""},0,0,0]
[{"$f":"IF(ISBLANK('Oversigt over året til dato'!A22),\"\",'Oversigt over året til dato'!A22)","v":""},{"$f":"IF(ISBLANK('Oversigt over året til dato'!B22),\"\",'Oversigt over året til dato'!B22)","v":""},0,0,0]
[{"$f":"IF(ISBLANK('Oversigt over året til dato'!A23),\"\",'Oversigt over året til dato'!A23)","v":""},{"$f":"IF(ISBLANK('Oversigt over året til dato'!B23),\"\",'Oversigt over året til dato'!B23)","v":""},0,0,0]
[{"$f":"IF(ISBLANK('Oversigt over året til dato'!A24),\"\",'Oversigt over året til dato'!A24)","v":""},{"$f":"IF(ISBLANK('Oversigt over året til dato'!B24),\"\",'Oversigt over året til dato'!B24)","v":""},0,0,0]
[{"$f":"IF(ISBLANK('Oversigt over året til dato'!A25),\"\",'Oversigt over året til dato'!A25)","v":""},{"$f":"IF(ISBLANK('Oversigt over året til dato'!B25),\"\",'Oversigt over året til dato'!B25)","v":""},0,0,0]
[{"$f":"IF(ISBLANK('Oversigt over året til dato'!A26),\"\",'Oversigt over året til dato'!A26)","v":""},{"$f":"IF(ISBLANK('Oversigt over året til dato'!B26),\"\",'Oversigt over året til dato'!B26)","v":""},0,0,0]
[{"$f":"IF(ISBLANK('Oversigt over året til dato'!A27),\"\",'Oversigt over året til dato'!A27)","v":""},{"$f":"IF(ISBLANK('Oversigt over året til dato'!B27),\"\",'Oversigt over året til dato'!B27)","v":""},0,0,0]
[{"$f":"IF(ISBLANK('Oversigt over året til dato'!A28),\"\",'Oversigt over året til dato'!A28)","v":""},{"$f":"IF(ISBLANK('Oversigt over året til dato'!B28),\"\",'Oversigt over året til dato'!B28)","v":""},0,0,0]
[{"$f":"IF(ISBLANK('Oversigt over året til dato'!A29),\"\",'Oversigt over året til dato'!A29)","v":""},{"$f":"IF(ISBLANK('Oversigt over året til dato'!B29),\"\",'Oversigt over året til dato'!B29)","v":""},0,0,0]
[{"$f":"IF(ISBLANK('Oversigt over året til dato'!A30),\"\",'Oversigt over året til dato'!A30)","v":""},{"$f":"IF(ISBLANK('Oversigt over året til dato'!B30),\"\",'Oversigt over året til dato'!B30)","v":""},0,0,0]
[{"$f":"IF(ISBLANK('Oversigt over året til dato'!A31),\"\",'Oversigt over året til dato'!A31)","v":""},{"$f":"IF(ISBLANK('Oversigt over året til dato'!B31),\"\",'Oversigt over året til dato'!B31)","v":""},0,0,0]
[{"$f":"IF(ISBLANK('Oversigt over året til dato'!A32),\"\",'Oversigt over året til dato'!A32)","v":""},{"$f":"IF(ISBLANK('Oversigt over året til dato'!B32),\"\",'Oversigt over året til dato'!B32)","v":""},0,0,0]
[{"$f":"IF(ISBLANK('Oversigt over året til dato'!A33),\"\",'Oversigt over året til dato'!A33)","v":""},{"$f":"IF(ISBLANK('Oversigt over året til dato'!B33),\"\",'Oversigt over året til dato'!B33)","v":""},0,0,0]
[{"$f":"IF(ISBLANK('Oversigt over året til dato'!A34),\"\",'Oversigt over året til dato'!A34)","v":""},{"$f":"IF(ISBLANK('Oversigt over året til dato'!B34),\"\",'Oversigt over året til dato'!B34)","v":""},0,0,0]
[{"$f":"IF(ISBLANK('Oversigt over året til dato'!A35),\"\",'Oversigt over året til dato'!A35)","v":""},{"$f":"IF(ISBLANK('Oversigt over året til dato'!B35),\"\",'Oversigt over året til dato'!B35)","v":""},0,0,0]
[{"$f":"IF(ISBLANK('Oversigt over året til dato'!A36),\"\",'Oversigt over året til dato'!A36)","v":""},{"$f":"IF(ISBLANK('Oversigt over året til dato'!B36),\"\",'Oversigt over året til dato'!B36)","v":""},0,0,0]

{"sheet":"4. kvartal","index":4,"n_rows":36,"n_cols":97,"rows_kept":36,"merged":[[3,0,3,6]]}
[{"$f":"Firmanavn","v":"Firmanavn"}]
["Fremmøderegistrering, 4. kvartal"]
["Dato"]
[{"$f":"Firmanavn","v":"Firmanavn"},{"$nulls":6},"FORTROLIGT"]
["Efternavn","Fornavn","Ferie","Orlov","Syg","01-10","02-10","03-10","04-10","05-10","06-10","07-10","08-10","09-10","10-10","11-10","12-10","13-10","14-10","15-10","16-10","17-10","18-10","19-10","20-10","21-10","22-10","23-10","24-10","25-10","26-10","27-10","28-10","29-10","30-10","31-10","01-11","02-11","03-11","04-11","05-11","06-11","07-11","08-11","09-11","10-11","11-11","12-11","13-11","14-11","15-11","16-11","17-11","18-11","19-11","20-11","21-11","22-11","23-11","24-11","25-11","26-11","27-11","28-11","29-11","30-11","01-12","02-12","03-12","04-12","05-12","06-12","07-12","08-12","09-12","10-12","11-12","12-12","13-12","14-12","15-12","16-12","17-12","18-12","19-12","20-12","21-12","22-12","23-12","24-12","25-12","26-12","27-12","28-12","29-12","30-12","31-12"]
[{"$f":"IF(ISBLANK('Oversigt over året til dato'!A6),\"\",'Oversigt over året til dato'!A6)","v":"Efternavn"},{"$f":"IF(ISBLANK('Oversigt over året til dato'!B6),\"\",'Oversigt over året til dato'!B6)","v":"Fornavn"},{"$f":"COUNTIF($F6:$CS6, \"F\")","v":0},{"$f":"COUNTIF($F6:CS6, \"O\")","v":0},{"$f":"COUNTIF($F6:CS6, \"S\")","v":0}]
[{"$f":"IF(ISBLANK('Oversigt over året til dato'!A7),\"\",'Oversigt over året til dato'!A7)","v":""},{"$f":"IF(ISBLANK('Oversigt over året til dato'!B7),\"\",'Oversigt over året til dato'!B7)","v":""},{"$f":"COUNTIF($F7:$CS7, \"F\")","v":0},{"$f":"COUNTIF($F7:CS7, \"O\")","v":0},{"$f":"COUNTIF($F7:CS7, \"S\")","v":0}]
[{"$f":"IF(ISBLANK('Oversigt over året til dato'!A8),\"\",'Oversigt over året til dato'!A8)","v":""},{"$f":"IF(ISBLANK('Oversigt over året til dato'!B8),\"\",'Oversigt over året til dato'!B8)","v":""},0,{"$f":"COUNTIF($F8:CS8, \"O\")","v":0},{"$f":"COUNTIF($F8:CS8, \"S\")","v":0}]
[{"$f":"IF(ISBLANK('Oversigt over året til dato'!A9),\"\",'Oversigt over året til dato'!A9)","v":""},{"$f":"IF(ISBLANK('Oversigt over året til dato'!B9),\"\",'Oversigt over året til dato'!B9)","v":""},0,{"$f":"COUNTIF($F9:CS9, \"O\")","v":0},{"$f":"COUNTIF($F9:CS9, \"S\")","v":0}]
[{"$f":"IF(ISBLANK('Oversigt over året til dato'!A10),\"\",'Oversigt over året til dato'!A10)","v":""},{"$f":"IF(ISBLANK('Oversigt over året til dato'!B10),\"\",'Oversigt over året til dato'!B10)","v":""},0,{"$f":"COUNTIF($F10:CS10, \"O\")","v":0},{"$f":"COUNTIF($F10:CS10, \"S\")","v":0}]
[{"$f":"IF(ISBLANK('Oversigt over året til dato'!A11),\"\",'Oversigt over året til dato'!A11)","v":""},{"$f":"IF(ISBLANK('Oversigt over året til dato'!B11),\"\",'Oversigt over året til dato'!B11)","v":""},0,{"$f":"COUNTIF($F11:CS11, \"O\")","v":0},{"$f":"COUNTIF($F11:CS11, \"S\")","v":0}]
[{"$f":"IF(ISBLANK('Oversigt over året til dato'!A12),\"\",'Oversigt over året til dato'!A12)","v":""},{"$f":"IF(ISBLANK('Oversigt over året til dato'!B12),\"\",'Oversigt over året til dato'!B12)","v":""},0,{"$f":"COUNTIF($F12:CS12, \"O\")","v":0},{"$f":"COUNTIF($F12:CS12, \"S\")","v":0}]
[{"$f":"IF(ISBLANK('Oversigt over året til dato'!A13),\"\",'Oversigt over året til dato'!A13)","v":""},{"$f":"IF(ISBLANK('Oversigt over året til dato'!B13),\"\",'Oversigt over året til dato'!B13)","v":""},0,{"$f":"COUNTIF($F13:CS13, \"O\")","v":0},{"$f":"COUNTIF($F13:CS13, \"S\")","v":0}]
[{"$f":"IF(ISBLANK('Oversigt over året til dato'!A14),\"\",'Oversigt over året til dato'!A14)","v":""},{"$f":"IF(ISBLANK('Oversigt over året til dato'!B14),\"\",'Oversigt over året til dato'!B14)","v":""},0,{"$f":"COUNTIF($F14:CS14, \"O\")","v":0},{"$f":"COUNTIF($F14:CS14, \"S\")","v":0}]
[{"$f":"IF(ISBLANK('Oversigt over året til dato'!A15),\"\",'Oversigt over året til dato'!A15)","v":""},{"$f":"IF(ISBLANK('Oversigt over året til dato'!B15),\"\",'Oversigt over året til dato'!B15)","v":""},0,{"$f":"COUNTIF($F15:CS15, \"O\")","v":0},{"$f":"COUNTIF($F15:CS15, \"S\")","v":0}]
[{"$f":"IF(ISBLANK('Oversigt over året til dato'!A16),\"\",'Oversigt over året til dato'!A16)","v":""},{"$f":"IF(ISBLANK('Oversigt over året til dato'!B16),\"\",'Oversigt over året til dato'!B16)","v":""},0,{"$f":"COUNTIF($F16:CS16, \"O\")","v":0},{"$f":"COUNTIF($F16:CS16, \"S\")","v":0}]
[{"$f":"IF(ISBLANK('Oversigt over året til dato'!A17),\"\",'Oversigt over året til dato'!A17)","v":""},{"$f":"IF(ISBLANK('Oversigt over året til dato'!B17),\"\",'Oversigt over året til dato'!B17)","v":""},0,{"$f":"COUNTIF($F17:CS17, \"O\")","v":0},{"$f":"COUNTIF($F17:CS17, \"S\")","v":0}]
[{"$f":"IF(ISBLANK('Oversigt over året til dato'!A18),\"\",'Oversigt over året til dato'!A18)","v":""},{"$f":"IF(ISBLANK('Oversigt over året til dato'!B18),\"\",'Oversigt over året til dato'!B18)","v":""},0,{"$f":"COUNTIF($F18:CS18, \"O\")","v":0},{"$f":"COUNTIF($F18:CS18, \"S\")","v":0}]
[{"$f":"IF(ISBLANK('Oversigt over året til dato'!A19),\"\",'Oversigt over året til dato'!A19)","v":""},{"$f":"IF(ISBLANK('Oversigt over året til dato'!B19),\"\",'Oversigt over året til dato'!B19)","v":""},0,{"$f":"COUNTIF($F19:CS19, \"O\")","v":0},{"$f":"COUNTIF($F19:CS19, \"S\")","v":0}]
[{"$f":"IF(ISBLANK('Oversigt over året til dato'!A20),\"\",'Oversigt over året til dato'!A20)","v":""},{"$f":"IF(ISBLANK('Oversigt over året til dato'!B20),\"\",'Oversigt over året til dato'!B20)","v":""},0,{"$f":"COUNTIF($F20:CS20, \"O\")","v":0},{"$f":"COUNTIF($F20:CS20, \"S\")","v":0}]
[{"$f":"IF(ISBLANK('Oversigt over året til dato'!A21),\"\",'Oversigt over året til dato'!A21)","v":""},{"$f":"IF(ISBLANK('Oversigt over året til dato'!B21),\"\",'Oversigt over året til dato'!B21)","v":""},0,{"$f":"COUNTIF($F21:CS21, \"O\")","v":0},{"$f":"COUNTIF($F21:CS21, \"S\")","v":0}]
[{"$f":"IF(ISBLANK('Oversigt over året til dato'!A22),\"\",'Oversigt over året til dato'!A22)","v":""},{"$f":"IF(ISBLANK('Oversigt over året til dato'!B22),\"\",'Oversigt over året til dato'!B22)","v":""},0,{"$f":"COUNTIF($F22:CS22, \"O\")","v":0},{"$f":"COUNTIF($F22:CS22, \"S\")","v":0}]
[{"$f":"IF(ISBLANK('Oversigt over året til dato'!A23),\"\",'Oversigt over året til dato'!A23)","v":""},{"$f":"IF(ISBLANK('Oversigt over året til dato'!B23),\"\",'Oversigt over året til dato'!B23)","v":""},0,{"$f":"COUNTIF($F23:CS23, \"O\")","v":0},{"$f":"COUNTIF($F23:CS23, \"S\")","v":0}]
[{"$f":"IF(ISBLANK('Oversigt over året til dato'!A24),\"\",'Oversigt over året til dato'!A24)","v":""},{"$f":"IF(ISBLANK('Oversigt over året til dato'!B24),\"\",'Oversigt over året til dato'!B24)","v":""},0,{"$f":"COUNTIF($F24:CS24, \"O\")","v":0},{"$f":"COUNTIF($F24:CS24, \"S\")","v":0}]
[{"$f":"IF(ISBLANK('Oversigt over året til dato'!A25),\"\",'Oversigt over året til dato'!A25)","v":""},{"$f":"IF(ISBLANK('Oversigt over året til dato'!B25),\"\",'Oversigt over året til dato'!B25)","v":""},0,{"$f":"COUNTIF($F25:CS25, \"O\")","v":0},{"$f":"COUNTIF($F25:CS25, \"S\")","v":0}]
[{"$f":"IF(ISBLANK('Oversigt over året til dato'!A26),\"\",'Oversigt over året til dato'!A26)","v":""},{"$f":"IF(ISBLANK('Oversigt over året til dato'!B26),\"\",'Oversigt over året til dato'!B26)","v":""},0,{"$f":"COUNTIF($F26:CS26, \"O\")","v":0},{"$f":"COUNTIF($F26:CS26, \"S\")","v":0}]
[{"$f":"IF(ISBLANK('Oversigt over året til dato'!A27),\"\",'Oversigt over året til dato'!A27)","v":""},{"$f":"IF(ISBLANK('Oversigt over året til dato'!B27),\"\",'Oversigt over året til dato'!B27)","v":""},0,{"$f":"COUNTIF($F27:CS27, \"O\")","v":0},{"$f":"COUNTIF($F27:CS27, \"S\")","v":0}]
[{"$f":"IF(ISBLANK('Oversigt over året til dato'!A28),\"\",'Oversigt over året til dato'!A28)","v":""},{"$f":"IF(ISBLANK('Oversigt over året til dato'!B28),\"\",'Oversigt over året til dato'!B28)","v":""},0,{"$f":"COUNTIF($F28:CS28, \"O\")","v":0},{"$f":"COUNTIF($F28:CS28, \"S\")","v":0}]
[{"$f":"IF(ISBLANK('Oversigt over året til dato'!A29),\"\",'Oversigt over året til dato'!A29)","v":""},{"$f":"IF(ISBLANK('Oversigt over året til dato'!B29),\"\",'Oversigt over året til dato'!B29)","v":""},0,{"$f":"COUNTIF($F29:CS29, \"O\")","v":0},{"$f":"COUNTIF($F29:CS29, \"S\")","v":0}]
[{"$f":"IF(ISBLANK('Oversigt over året til dato'!A30),\"\",'Oversigt over året til dato'!A30)","v":""},{"$f":"IF(ISBLANK('Oversigt over året til dato'!B30),\"\",'Oversigt over året til dato'!B30)","v":""},0,{"$f":"COUNTIF($F30:CS30, \"O\")","v":0},{"$f":"COUNTIF($F30:CS30, \"S\")","v":0}]
[{"$f":"IF(ISBLANK('Oversigt over året til dato'!A31),\"\",'Oversigt over året til dato'!A31)","v":""},{"$f":"IF(ISBLANK('Oversigt over året til dato'!B31),\"\",'Oversigt over året til dato'!B31)","v":""},0,{"$f":"COUNTIF($F31:CS31, \"O\")","v":0},{"$f":"COUNTIF($F31:CS31, \"S\")","v":0}]
[{"$f":"IF(ISBLANK('Oversigt over året til dato'!A32),\"\",'Oversigt over året til dato'!A32)","v":""},{"$f":"IF(ISBLANK('Oversigt over året til dato'!B32),\"\",'Oversigt over året til dato'!B32)","v":""},0,{"$f":"COUNTIF($F32:CS32, \"O\")","v":0},{"$f":"COUNTIF($F32:CS32, \"S\")","v":0}]
[{"$f":"IF(ISBLANK('Oversigt over året til dato'!A33),\"\",'Oversigt over året til dato'!A33)","v":""},{"$f":"IF(ISBLANK('Oversigt over året til dato'!B33),\"\",'Oversigt over året til dato'!B33)","v":""},0,{"$f":"COUNTIF($F33:CS33, \"O\")","v":0},{"$f":"COUNTIF($F33:CS33, \"S\")","v":0}]
[{"$f":"IF(ISBLANK('Oversigt over året til dato'!A34),\"\",'Oversigt over året til dato'!A34)","v":""},{"$f":"IF(ISBLANK('Oversigt over året til dato'!B34),\"\",'Oversigt over året til dato'!B34)","v":""},0,{"$f":"COUNTIF($F34:CS34, \"O\")","v":0},{"$f":"COUNTIF($F34:CS34, \"S\")","v":0}]
[{"$f":"IF(ISBLANK('Oversigt over året til dato'!A35),\"\",'Oversigt over året til dato'!A35)","v":""},{"$f":"IF(ISBLANK('Oversigt over året til dato'!B35),\"\",'Oversigt over året til dato'!B35)","v":""},0,{"$f":"COUNTIF($F35:CS35, \"O\")","v":0},{"$f":"COUNTIF($F35:CS35, \"S\")","v":0}]
[{"$f":"IF(ISBLANK('Oversigt over året til dato'!A36),\"\",'Oversigt over året til dato'!A36)","v":""},{"$f":"IF(ISBLANK('Oversigt over året til dato'!B36),\"\",'Oversigt over året til dato'!B36)","v":""},0,{"$f":"COUNTIF($F36:CS36, \"O\")","v":0},{"$f":"COUNTIF($F36:CS36, \"S\")","v":0}]